Workbook

Sheet Sheet1
A1: Profit and Loss
A2: Wythe Apartments LLC
A3: January 1, 2023-December 31, 2025
A5: Distribution account | B5: 2023 | C5: 2024 | D5: 2025 | E5: Total
A6: Income
A7: Rent | B7: 477463.05 | C7: 480386.04 | D7: 524374.6 | E7: =B7+C7+D7 -> 1482223.69
A8: Total for Income | B8: =B7 -> 477463.05 | C8: =C7 -> 480386.04 | D8: =D7 -> 524374.6 | E8: =B8+C8+D8 -> 1482223.69
A9: Gross Profit | B9: 477463.05 | C9: 480386.04 | D9: 524374.6 | E9: 1482223.69
A10: Expenses
A11: Bank Charges & Fees | B11: 0 | C11: 35 | D11: 0 | E11: =B11+C11+D11 -> 35
A12: Cell Phone | B12: 355.86 | C12: 417.24 | D12: 330 | E12: 1103.1
A13: Charitable Contributions | B13: 500 | C13: 500 | D13: 500 | E13: 1500
A14: Dumpster & Oversize Hauling | B14: 6193.58 | C14: 7630.06 | D14: 9871.01 | E14: 23694.65
A15: Electric | B15: 7439.06 | C15: 6953.53 | D15: 6220.71 | E15: 20613.3
A16: Elevator | B16: 3507.86 | C16: 3711.9 | D16: 2793.3 | E16: 10013.06
A17: Inspections-Yearly & Required | B17: 3645.85 | C17: 4736.91 | D17: 8863.2 | E17: 17245.96
A18: Insurance | B18: 23034.51 | C18: 16407.37 | D18: 18208.56 | E18: 57650.44
A19: Internet & TV | B19: 2946.38 | C19: 2965.85 | D19: 3185.72 | E19: 9097.95
A20: Janitorial | B20: 5865 | C20: 3707 | D20: 4585 | E20: 14157
A21: Landscaping | B21: 10919.58 | C21: 8975.55 | D21: 10582.74 | E21: 30477.87
A22: Legal & Professional Services | B22: 910.75 | C22: 50 | D22: 4644 | E22: 5604.75
A23: Management Fees | B23: 41065 | C23: 39138 | D23: 60139 | E23: 140342
A24: Master Lease Payment | B24: 264000 | C24: 264000 | D24: 264000 | E24: 792000
A25: Meals & Entertainment | B25: 1160.89 | E25: 1160.89
A26: Memberships | B26: 94.4 | C26: 145.6 | D26: 150 | E26: 390
A27: Office Supplies & Software | B27: 1609.69 | C27: 1129.58 | D27: 467.64 | E27: 3206.91
A28: Pest Control | B28: 1983 | C28: 1704 | D28: 1938 | E28: 5625
A29: Real Estate Taxes | B29: 31617.27 | C29: 42933.53 | D29: 42544.2 | E29: 117095
A30: Reimbursable Expenses | B30: 6187.94 | C30: 4841.37 | D30: 1742.3 | E30: 12771.61
A31: Rent & Lease | B31: 2769.56 | E31: 2769.56
A32: Repairs & Maintenance | B32: 52763.75 | C32: 52800.6 | D32: 44140.75 | E32: 149705.1
A33: Signage | B33: 72.16 | E33: 72.16
A34: Tax Accounting | B34: 2500 | C34: 1350 | D34: 778.95 | E34: 4628.95
A35: Tools & Supplies | B35: 8801.76 | C35: 6205.8 | D35: 4346.07 | E35: 19353.63
A36: Water & Sewer | B36: 11926.46 | C36: 14755.78 | D36: 15870.19 | E36: 42552.43
A37: Total for Expenses | B37: =B11+B12+B13+B14+B15+B16+B17+B18+B19+B20+B21+B22+B23+B24+B25+B26+B27+B28+B29+B30+B31+B32+B33+B34+B35+B36 -> 491870.31 | C37: =C11+C12+C13+C14+C15+C16+C17+C18+C19+C20+C21+C22+C23+C24+C25+C26+C27+C28+C29+C30+C31+C32+C33+C34+C35+C36 -> 485094.67 | D37: =D11+D12+D13+D14+D15+D16+D17+D18+D19+D20+D21+D22+D23+D24+D25+D26+D27+D28+D29+D30+D31+D32+D33+D34+D35+D36 -> 505901.34 | E37: 1482866.32
A38: Net Operating Income | B38: -14407.26 | C38: -4708.63 | D38: 18473.26 | E38: -642.63
A39: Other Income
A40: Investment Income | B40: 936 | E40: =B40+C40+D40 -> 936
A41: Total for Other Income | B41: =B40 -> 936 | E41: =B41+C41+D41 -> 936
A42: Other Expenses
A43: Capital Expense | B43: 7200 | D43: 6563.53 | E43: =B43+C43+D43 -> 13763.53
A44: Depreciation | B44: 1523 | E44: =B44+C44+D44 -> 1523
A45: Total for Other Expenses | B45: =B43+B44 -> 8723 | D45: =D43+D44 -> 6563.53 | E45: =B45+C45+D45 -> 15286.53
A46: Net Other Income | B46: -7787 | D46: -6563.53 | E46: =B46+C46+D46 -> -14350.53
A47: Net Income | B47: -22194.26 | C47: -4708.63 | D47: 11909.73 | E47: -14993.16
A51: Accrual Basis Tuesday, February 10, 2026 01:44 AM GMTZ
